bitfinex/quotes_ETHUSD_20250420
["timestamp","ask_amount","ask_price","bid_price","bid_amount"]
[1745141485501,18.97300025,1588.8,1588.7,59.162]
[1745141485707,19.52300025,1588.8,1588.7,59.162]
[1745141491371,0.774,1588.5,1588.4,53.91]
[1745141491572,2.51397906,1588.5,1588.4,59.173]
[1745141492173,2.97881612,1588.5,1588.4,59.173]
[1745141493176,9.2740632,1588.5,1588.4,59.173]
[1745141494186,12.2740632,1588.5,1588.4,59.173]
[1745141494755,5.20481612,1588.5,1588.4,59.173]
[1745141497197,8.4662511,1588.5,1588.4,59.173]
[1745141512443,6.72627204,1588.5,1588.4,65.8925]
[1745141512745,8.4662511,1588.5,1588.4,65.8925]
[1745141518060,8.4662511,1588.5,1588.4,59.173]
[1745141522960,8.4662511,1588.5,1588.4,59.173]
[1745141525175,9.2873511,1588.5,1588.4,59.173]
[1745141525376,9.8373511,1588.5,1588.4,59.173]
[1745141525583,3.26143498,1588.4,1588.3,53.921]
[1745141525885,5.00141404,1588.4,1588.3,59.183]
[1745141528649,8.00141404,1588.4,1588.3,59.183]
[1745141539877,14.29705745,1588.4,1588.3,59.183]
[1745141540883,8.00141404,1588.4,1588.3,59.183]
[1745141542515,14.29705745,1588.4,1588.3,59.183]
[1745141544817,8.00141404,1588.4,1588.3,59.183]
[1745141548012,14.29705745,1588.4,1588.3,59.183]
[1745141549538,17.08989562,1588.4,1588.3,59.183]
[1745141552815,6.26143498,1588.3,1588.2,53.926]
[1745141553021,6.26143498,1588.3,1588.2,59.186]
[1745141554719,13.34377477,1588.3,1588.2,59.186]
[1745141555421,15.08375383,1588.3,1588.2,59.186]
[1745141556210,19.56667261,1588.3,1588.2,59.186]
[1745141561641,3.16143498,1588.0,1587.8,0.7919]
[1745141561857,6.16143498,1588.0,1587.9,59.191]
[1745141563065,7.90141404,1588.0,1587.9,59.191]
[1745141564362,8.37796828,1588.0,1587.9,59.191]
[1745141564826,3.63798922,1588.0,1587.9,60.0236]
[1745141565036,3.16143498,1588.0,1587.9,66.02189]
[1745141575285,3.16143498,1588.0,1587.9,60.0236]
[1745141580991,3.16143498,1588.3,1588.0,0.7816]
[1745141581307,3.16143498,1588.3,1588.2,0.7816]
[1745141582163,3.16143498,1588.7,1588.2,0.7816]
[1745141582364,3.16143498,1588.7,1588.4,0.7519]
[1745141586465,3.16143498,1588.7,1588.5,0.06294016]
[1745141586660,3.16143498,1588.7,1588.4,0.7519]
[1745141592518,3.16143498,1588.7,1588.6,0.7695]
[1745141598018,3.16143498,1588.7,1588.6,54.7423]
[1745141598324,3.16143498,1588.7,1588.6,60.21653]
[1745141602731,3.7715432,1589.2,1588.6,60.21653]
[1745141602732,3.16143498,1589.1,1588.7,0.8144]
[1745141603030,3.16143498,1589.1,1588.8,5.254]
[1745141605795,3.7715432,1589.0,1588.8,5.254]
[1745141607837,3.7715432,1589.0,1588.8,5.31692869]
[1745141608140,3.7715432,1589.0,1588.8,5.86713287]
[1745141608440,3.7715432,1589.0,1588.8,5.93006166]
[1745141608628,3.16143498,1588.9,1588.8,5.93006166]
[1745141609650,3.16143498,1588.9,1588.8,6.75156166]
[1745141609815,3.16143498,1588.9,1588.8,6.68863287]
[1745141611800,3.16143498,1589.2,1588.9,0.8164]
[1745141612008,3.16143498,1589.2,1589.1,0.8164]
[1745141617368,0.0016279,1589.3,1589.1,0.8164]
[1745141617546,0.0016279,1589.3,1589.2,5.253]
[1745141617755,0.0016279,1589.3,1589.2,5.85994]
[1745141619724,0.0016279,1589.3,1589.2,6.69644702]
[1745141620338,0.0016279,1589.3,1589.2,6.63354]
[1745141627369,0.0016279,1589.3,1589.2,60.51554]
[1745141639949,0.0016279,1589.3,1589.2,59.74194]
[1745141642082,0.7949279,1589.3,1589.2,54.48894]
[1745141642286,0.7949279,1589.3,1589.2,59.132]
[1745141642579,3.95636288,1589.3,1589.2,59.132]
[1745141652165,3.16306288,1589.3,1589.2,59.132]
[1745141653404,0.0016279,1589.3,1589.2,59.912]
[1745141658309,0.0016279,1589.3,1589.2,59.132]
[1745141658484,0.0016279,1589.3,1589.2,65.0452]
[1745141660311,0.0016279,1589.3,1589.2,65.8046]
[1745141665210,0.0016279,1589.3,1589.2,65.0452]
[1745141665418,0.0016279,1589.3,1589.2,59.132]
[1745141665617,0.7870279,1589.3,1589.2,59.132]
[1745141667724,3.94846288,1589.3,1589.2,59.132]
[1745141687759,6.94846288,1589.3,1589.2,59.132]
[1745141688866,7.46936288,1589.3,1589.2,59.132]
[1745141689071,15.51445222,1589.3,1589.2,59.132]
[1745141689237,10.04886744,1589.2,1588.4,0.7783]
[1745141689572,0.7563,1588.9,1588.5,59.136]
[1745141690764,6.16143498,1588.8,1588.5,59.136]
[1745141690951,3.16143498,1588.8,1588.5,59.136]
[1745141691149,6.16143498,1588.8,1588.5,59.136]
[1745141691327,0.7563,1588.7,1588.5,59.136]
[1745141692238,3.16143498,1588.6,1588.5,53.887]
[1745141692461,3.16143498,1588.6,1588.5,59.136]
[1745141693964,6.16143498,1588.6,1588.5,59.136]
[1745141694156,6.91923498,1588.6,1588.5,59.136]
[1745141695171,6.91923498,1588.6,1588.5,53.887]
[1745141695466,14.35207058,1588.6,1588.5,59.136]
[1745141695772,8.05721977,1588.6,1588.5,59.136]
[1745141697751,14.35207058,1588.6,1588.5,59.136]
[1745141698461,8.05721977,1588.6,1588.5,59.136]
[1745141699082,3.7689,1588.3,1587.8,0.8065]
[1745141699289,3.16143498,1588.2,1587.9,59.16]
[1745141700183,3.63089206,1588.2,1587.9,59.16]
[1745141702248,3.16143498,1588.2,1587.9,59.16]
[1745141704390,0.7689,1588.0,1587.9,59.16]
[1745141704594,7.53773941,1588.1,1587.9,59.16]
[1745141705385,6.16143498,1588.0,1587.9,59.16]
[1745141708891,7.23722242,1588.0,1587.9,59.16]
[1745141709490,6.16143498,1588.0,1587.9,59.16]
[1745141713165,6.16143498,1588.0,1587.9,53.909]
[1745141713363,6.16143498,1588.0,1587.9,59.161]
[1745141717110,6.16143498,1588.0,1587.9,60.89606013]
[1745141717111,3.15987014,1588.0,1587.9,60.89606013]
[1745141717462,3.15987014,1588.0,1587.9,59.9661]
[1745141717667,3.15987014,1588.0,1587.9,65.96271]
[1745141720320,3.15987014,1588.0,1587.9,59.9661]
[1745141721108,3.15987014,1588.0,1587.9,59.161]
[1745141722414,3.15987014,1588.0,1587.9,59.9661]
[1745141725183,3.15987014,1588.0,1587.9,59.161]
[1745141727538,6.15987014,1588.0,1587.9,59.161]
[1745141728207,7.2344711,1588.0,1587.9,59.161]
[1745141728616,8.0289711,1588.0,1587.9,5.252]
[1745141728809,3.7945,1587.8,1587.3,0.8111]
[1745141729140,6.92870955,1587.7,1587.4,59.184]
[1745141729327,6.92870955,1587.7,1587.4,65.18351]
[1745141729907,6.92870955,1587.7,1587.5,0.06298553]
[1745141729908,3.15987014,1587.7,1587.5,0.06298553]
[1745141730307,3.15987014,1587.7,1587.4,65.18351]
[1745141730713,3.15987014,1587.7,1587.5,0.87408321]
[1745141730903,3.15987014,1587.7,1587.5,0.8111]
[1745141731211,3.15987014,1587.7,1587.5,7.16696487]
[1745141731838,0.67215132,1587.6,1587.5,7.16696487]
[1745141732022,3.15987014,1587.7,1587.5,7.16696487]
[1745141732204,0.66213021,1587.6,1587.5,7.16696487]
[1745141732404,3.15987014,1587.7,1587.5,7.16696487]
[1745141732612,0.66213021,1587.6,1587.5,7.16696487]
[1745141733117,3.15987014,1587.7,1587.5,7.16696487]
[1745141733434,0.66213021,1587.6,1587.5,7.16696487]
[1745141733642,3.15987014,1587.7,1587.5,7.22994725]
[1745141733838,0.66213021,1587.6,1587.5,7.16696487]
[1745141734042,3.15987014,1587.7,1587.5,7.16696487]
[1745141734218,0.66213021,1587.6,1587.5,7.16696487]
[1745141734543,3.15987014,1587.7,1587.5,7.16696487]
[1745141734747,0.66213021,1587.6,1587.5,0.8111]
[1745141734912,3.15987014,1587.7,1587.5,0.8111]
[1745141735243,0.66213021,1587.6,1587.5,0.8111]
[1745141735441,3.15987014,1587.7,1587.5,0.8111]
[1745141735645,0.66213021,1587.6,1587.5,0.8111]
[1745141736112,3.15987014,1587.7,1587.5,0.8111]
[1745141736313,0.66213021,1587.6,1587.5,0.87408289]
[1745141736514,3.15987014,1587.7,1587.5,6.87989118]
[1745141736737,0.66213021,1587.6,1587.5,6.81690829]
[1745141737044,3.15987014,1587.7,1587.5,6.81690829]
[1745141737208,0.66213021,1587.6,1587.5,6.81690829]
[1745141737408,3.15987014,1587.7,1587.5,6.81690829]
[1745141737707,0.66278196,1587.6,1587.5,6.81690829]
[1745141738023,3.15987014,1587.7,1587.5,6.81690829]
[1745141738220,0.66278196,1587.6,1587.5,6.81690829]
[1745141738409,3.15987014,1587.7,1587.5,6.81690829]
[1745141738746,0.66278196,1587.6,1587.5,6.81690829]
[1745141738947,3.15987014,1587.7,1587.5,6.81690829]
[1745141739244,0.66278196,1587.6,1587.5,6.81690829]
[1745141739443,3.15987014,1587.7,1587.5,6.81690829]
[1745141739631,0.66278196,1587.6,1587.5,6.81690829]
[1745141739834,3.15987014,1587.7,1587.5,6.81690829]
[1745141740134,0.66278196,1587.6,1587.5,6.81690829]
[1745141740345,3.15987014,1587.7,1587.5,6.81690829]
[1745141740639,0.66278196,1587.6,1587.5,6.81690829]
[1745141740855,3.15987014,1587.7,1587.5,6.81690829]
[1745141741049,0.66278196,1587.6,1587.5,6.81690829]
[1745141741855,3.15987014,1587.7,1587.5,6.81690829]
[1745141742020,0.66278196,1587.6,1587.5,6.81690829]
[1745141742235,3.15987014,1587.7,1587.5,6.87989111]
[1745141742423,0.66278196,1587.6,1587.5,6.87989111]
[1745141742624,3.15987014,1587.7,1587.5,6.87989111]
[1745141742933,0.66278196,1587.6,1587.5,6.87989111]
[1745141743131,3.15987014,1587.7,1587.5,6.87989111]
[1745141743336,3.15987014,1587.7,1587.6,0.68798911]
[1745141743840,3.15987014,1587.7,1587.5,6.87989111]
[1745141744049,3.15987014,1587.7,1587.5,6.81690829]
[1745141748264,3.15987014,1587.7,1587.6,5.252]
[1745141752936,3.15987014,1587.7,1587.6,59.192]
[1745141756371,3.82194586,1587.7,1587.6,59.192]
[1745141771348,3.82194586,1587.7,1587.6,53.94]
[1745141771349,12.62732072,1587.7,1587.6,53.94]
[1745141771552,12.62732072,1587.7,1587.6,59.192]
[1745141773693,3.8134,1587.5,1587.2,5.0]
[1745141773990,0.65853296,1587.4,1587.3,59.196]
[1745141774203,3.8184031,1587.4,1587.3,59.196]
[1745141780873,4.6133031,1587.4,1587.3,59.196]
[1745141781281,6.35705598,1587.4,1587.3,59.196]
[1745141781762,10.29276158,1587.4,1587.3,59.196]
[1745141783182,12.32747102,1587.4,1587.3,59.196]
[1745141784602,19.17708044,1587.4,1587.3,59.196]
[1745141787536,3.0,1587.2,1587.1,0.1]
[1745141787694,3.0,1587.2,1587.1,59.306]
[1745141787894,3.65195812,1587.2,1587.1,59.306]
[1745141792140,4.12616273,1587.2,1587.1,59.306]
[1745141793546,7.28603287,1587.2,1587.1,59.306]
[1745141797706,6.81182826,1587.2,1587.1,60.1346]
[1745141798701,6.81182826,1587.2,1587.1,59.306]
[1745141801004,6.81182826,1587.2,1587.1,65.31946]
[1745141801755,3.81182826,1587.2,1587.1,66.14806]
[1745141801952,3.81182826,1587.2,1587.1,67.62487072]
[1745141802259,3.15987014,1587.2,1587.1,67.62487072]
[1745141804641,3.15987014,1587.2,1587.1,66.87368899]
[1745141804846,3.15987014,1587.2,1587.1,66.14806]
[1745141805147,3.15987014,1587.8,1587.2,0.8191]
[1745141805521,0.49596857,1587.7,1587.2,0.8191]
[1745141807455,0.49596857,1587.7,1587.1,65.31946]
[1745141807633,0.49596857,1587.7,1587.3,0.7982]
[1745141810971,3.15987014,1587.6,1587.3,0.7982]
[1745141811339,0.49582735,1587.5,1587.3,0.7982]
[1745141812784,0.49582735,1587.5,1587.4,0.06298653]
[1745141813157,0.49582735,1587.5,1587.4,0.7982]
[1745141814393,3.15987014,1587.6,1587.4,0.7982]
[1745141814547,3.15987014,1587.6,1587.5,5.31398415]
[1745141814748,3.15987014,1587.6,1587.5,5.92520256]
[1745141816557,3.15987014,1587.6,1587.5,6.62421841]
[1745141818279,3.15987014,1587.6,1587.5,60.56821841]
[1745141829406,3.15987014,1587.6,1587.5,59.80621841]
[1745141830281,3.64825968,1587.6,1587.5,59.80621841]
[1745141833177,3.15987014,1587.6,1587.5,59.80621841]
[1745141841221,3.15987014,1587.6,1587.5,62.08666246]
[1745141841894,3.15987014,1587.6,1587.5,60.56401841]
[1745141864873,3.15987014,1587.6,1587.5,62.08666246]
[1745141865371,3.15987014,1587.6,1587.5,60.57768073]
[1745141868169,3.15987014,1587.6,1587.5,61.32886246]
[1745141868777,3.15987014,1587.6,1587.5,62.15446246]
[1745141869078,3.15987014,1587.6,1587.5,62.70446246]
[1745141869288,3.91327014,1588.1,1587.7,0.8256]
[1745141869441,3.15987014,1588.1,1587.7,1.59706232]
[1745141870269,3.15987014,1588.1,1587.8,1.3756]
[1745141870496,3.15987014,1588.1,1587.9,5.247]
[1745141870659,3.15987014,1588.1,1588.0,0.5247]
[1745141872491,3.91327014,1588.3,1588.0,0.5247]
[1745141872699,0.37451932,1588.2,1588.0,0.5247]
[1745141873804,2.11706376,1588.2,1588.0,0.5247]
[1745141873989,0.8303,1588.1,1587.9,5.247]
[1745141874387,0.3777084,1588.0,1587.9,5.247]
[1745141874681,0.3777084,1588.0,1587.9,59.176]
[1745141874891,0.8303,1588.1,1587.9,59.176]
[1745141875394,0.3777084,1588.0,1587.9,59.176]
[1745141875714,0.8303,1588.1,1587.9,59.176]
[1745141876074,0.3777084,1588.0,1587.9,59.176]
[1745141876313,0.8303,1588.1,1587.9,65.0936]
[1745141876516,0.8303,1588.1,1587.9,59.176]
[1745141876699,0.3777084,1588.0,1587.9,59.176]
[1745141876901,0.8303,1588.1,1587.9,59.176]
[1745141877277,0.3777084,1588.0,1587.9,59.176]
[1745141877609,0.8303,1588.1,1587.9,59.176]
[1745141877927,0.3777084,1588.0,1587.9,59.176]
[1745141878094,0.8303,1588.1,1587.9,59.176]
[1745141878285,0.3777084,1588.0,1587.9,59.176]
[1745141878486,3.15987014,1588.1,1587.9,65.0936]
[1745141880494,0.3777084,1588.0,1587.9,65.0936]
[1745141880886,3.15987014,1588.1,1587.9,65.0936]
[1745141881087,0.3777084,1588.0,1587.9,59.176]
[1745141881382,3.15987014,1588.1,1587.9,59.176]
[1745141881590,0.3777084,1588.0,1587.9,59.176]
[1745141881909,3.15987014,1588.1,1587.9,59.176]
[1745141882443,0.3777084,1588.0,1587.9,59.176]
[1745141882597,0.3777084,1588.0,1587.9,59.175]
[1745141882801,0.806,1588.0,1587.9,59.175]
[1745141883320,2.54854444,1588.0,1587.9,59.175]
[1745141883684,2.92625284,1588.0,1587.9,59.175]
[1745141883886,6.08612298,1588.0,1587.9,59.175]
[1745141885820,6.69473528,1588.0,1587.9,59.175]
[1745141886323,9.69473528,1588.0,1587.9,59.175]
[1745141888735,9.08612298,1588.0,1587.9,59.175]
[1745141927995,8.28012298,1588.0,1587.9,59.175]
[1745141941182,9.03082298,1588.0,1587.9,59.175]
[1745141944614,8.28012298,1588.0,1587.9,59.175]
[1745141950821,9.03082298,1588.0,1587.9,59.175]
[1745141958647,8.28012298,1588.0,1587.9,59.175]
[1745141974610,9.18418528,1588.0,1587.9,59.175]
[1745141975955,9.99138528,1588.0,1587.9,59.175]
[1745141976125,16.28861449,1588.0,1587.9,59.175]
[1745141976861,9.99138528,1588.0,1587.9,59.175]
[1745141981058,6.15987014,1587.9,1587.5,0.8007]
[1745141981281,1.74254444,1587.7,1587.6,59.185]
[1745141981467,4.90241458,1587.7,1587.6,59.185]
[1745141981627,5.27434396,1587.7,1587.6,59.185]
[1745141983677,5.27434396,1587.7,1587.6,65.18357]
[1745141987851,8.27434396,1587.7,1587.6,59.185]
[1745141998395,8.27434396,1587.7,1587.6,59.9586]
[1745142003399,8.27434396,1587.7,1587.6,59.185]
[1745142007805,8.27434396,1587.7,1587.6,59.9405]
[1745142021537,8.27434396,1587.7,1587.6,59.185]
[1745142026839,11.7043428,1587.7,1587.6,53.941]
[1745142027042,18.00276189,1587.7,1587.6,59.182]
[1745142030846,3.15987014,1587.6,1587.2,0.792]
[1745142031148,0.36929403,1587.5,1587.3,59.188]
[1745142031647,0.69165596,1587.5,1587.3,59.188]
[1745142032221,1.74254444,1587.4,1587.3,59.188]
[1745142032509,5.58921456,1587.4,1587.3,59.188]
[1745142035750,3.84667012,1587.4,1587.3,65.9829]
[1745142037349,3.15987014,1587.4,1587.3,65.9829]
[1745142037645,3.84743193,1587.4,1587.3,65.9829]
[1745142039754,3.15987014,1587.4,1587.3,65.9829]
[1745142040514,4.90241458,1587.8,1587.3,65.9829]
[1745142040721,4.90241458,1587.8,1587.5,0.7559]
[1745142040920,0.6578633,1587.7,1587.5,0.7559]
[1745142045457,3.81773344,1587.7,1587.5,0.7559]
[1745142046459,5.56027788,1587.7,1587.5,0.7559]
[1745142046756,1.74254444,1587.6,1587.5,0.7559]
[1745142046946,0.63639279,1587.6,1587.5,0.7559]
[1745142047143,4.90241458,1587.7,1587.5,0.7559]
[1745142047349,0.63658317,1587.6,1587.5,0.7559]
[1745142047661,4.90241458,1587.7,1587.5,0.7559]
[1745142047860,0.63658317,1587.6,1587.5,0.7559]
[1745142048162,4.90241458,1587.7,1587.5,1.53006151]
[1745142048362,0.63658317,1587.6,1587.5,1.53006151]
[1745142048529,4.90241458,1587.7,1587.5,1.53006151]
[1745142048728,0.63658317,1587.6,1587.5,1.53006151]
[1745142048930,4.90241458,1587.7,1587.5,1.53006151]
[1745142049154,0.63658317,1587.6,1587.5,1.53006151]
[1745142049367,4.90241458,1587.7,1587.5,1.53006151]
[1745142049537,0.63658317,1587.6,1587.5,6.77106151]
[1745142049739,4.90241458,1587.7,1587.5,6.77106151]
[1745142050036,0.63658317,1587.6,1587.5,6.77106151]
[1745142050228,4.90241458,1587.7,1587.5,6.77106151]
[1745142050429,0.63658317,1587.6,1587.5,6.77106151]
[1745142050624,4.90241458,1587.7,1587.5,6.77106151]
[1745142050853,0.63658317,1587.6,1587.5,5.9969]
[1745142051061,4.90241458,1587.7,1587.5,5.9969]
[1745142051358,0.63658317,1587.6,1587.5,5.9969]
[1745142051522,4.90241458,1587.7,1587.5,6.05988506]
[1745142051728,0.63658317,1587.6,1587.5,5.241]
[1745142052152,5.73161458,1587.7,1587.5,5.241]
[1745142052351,1.27340295,1587.6,1587.5,5.241]
[1745142052861,1.27340295,1587.6,1587.3,54.7765]
[1745142053160,1.74254444,1587.4,1587.3,53.947]
[1745142053370,1.74254444,1587.4,1587.3,59.188]
[1745142053532,2.37778947,1587.4,1587.3,59.188]
[1745142054679,5.53765961,1587.4,1587.3,59.188]
[1745142055184,7.57316765,1587.4,1587.3,59.188]
[1745142058596,3.79511517,1587.4,1587.3,59.188]
[1745142058896,6.79511517,1587.4,1587.3,59.188]
[1745142064214,7.56261517,1587.4,1587.3,59.188]
[1745142067296,8.31887669,1587.4,1587.3,59.188]
[1745142068717,8.31887669,1587.4,1587.3,59.187]
[1745142069041,8.36357669,1587.4,1587.3,59.187]
[1745142069248,14.66318611,1587.4,1587.3,59.187]
[1745142069406,3.8122,1587.2,1587.1,0.1]
[1745142069605,8.29931386,1587.2,1587.1,59.293]
[1745142069835,8.92722188,1587.2,1587.1,59.293]
[1745142070206,9.39038516,1587.2,1587.1,59.293]
[1745142071434,15.69078838,1587.2,1587.1,59.294]
[1745142073045,16.00772508,1587.2,1587.1,59.294]
[1745142073343,15.69078838,1587.2,1587.1,59.294]
[1745142074646,9.39038516,1587.2,1587.1,59.294]
[1745142074821,15.69078838,1587.2,1587.1,59.294]
[1745142075744,5.11502188,1587.2,1587.1,59.294]
[1745142075957,3.78777816,1587.2,1587.1,59.294]
[1745142082881,3.78777816,1587.2,1587.1,60.0553]
[1745142101837,3.78777816,1587.2,1587.1,59.294]
[1745142104125,3.15987014,1587.2,1587.1,59.294]
[1745142104326,3.78272974,1587.2,1587.1,59.294]
[1745142106348,3.78272974,1587.2,1587.1,60.0659]
[1745142116380,3.78272974,1587.2,1587.1,59.294]
[1745142116593,4.93340271,1587.2,1587.1,59.294]
[1745142119106,4.55512974,1587.2,1587.1,59.294]
[1745142121394,3.78272974,1587.2,1587.1,59.294]
[1745142121906,3.78272974,1587.2,1587.1,60.0978]
[1745142124310,3.15987014,1587.2,1587.1,60.0978]
[1745142126321,3.15987014,1587.7,1587.2,0.8031]
[1745142126625,0.50393279,1587.6,1587.2,0.8031]
[1745142127123,3.15987014,1587.7,1587.2,0.8031]
[1745142127421,0.50393279,1587.6,1587.2,0.8031]
[1745142127922,3.15987014,1587.7,1587.2,0.8031]
[1745142128125,0.50388248,1587.5,1587.2,0.8031]
[1745142128294,0.50393279,1587.6,1587.2,0.8031]
[1745142128622,0.50388248,1587.5,1587.2,0.8031]
[1745142128823,3.15987014,1587.7,1587.2,0.8031]
[1745142129143,0.50383217,1587.4,1587.2,0.8031]
[1745142129321,3.15987014,1587.7,1587.2,0.8031]
[1745142129700,0.50393279,1587.6,1587.2,0.8031]
[1745142130116,3.15987014,1587.7,1587.2,0.8031]
[1745142130300,0.50388248,1587.5,1587.2,0.8031]
[1745142130501,0.50393279,1587.6,1587.2,0.8031]
[1745142130715,3.15987014,1587.7,1587.2,0.8031]
[1745142131117,0.50393279,1587.6,1587.2,0.8031]
[1745142131426,3.15987014,1587.7,1587.3,0.06298328]
[1745142131727,3.15987014,1587.7,1587.4,0.8089]
[1745142132020,3.15987014,1587.7,1587.5,5.238]
[1745142132324,3.15987014,1587.7,1587.6,0.5238]
[1745142133135,3.66918681,1587.7,1587.6,0.5238]
[1745142136197,3.15987014,1587.7,1587.5,5.238]
[1745142136431,3.66918681,1587.7,1587.5,5.238]
[1745142138433,3.15987014,1587.7,1587.5,5.238]
[1745142138998,3.15987014,1587.7,1587.6,0.7676]
[1745142139694,3.15987014,1587.7,1587.5,6.0056]
[1745142139910,3.15987014,1587.7,1587.5,6.60616]
[1745142140133,0.50926637,1587.6,1587.5,6.60616]
[1745142140436,3.15987014,1587.7,1587.5,6.60616]
[1745142140642,0.50926637,1587.6,1587.5,6.60616]
[1745142140816,3.15987014,1587.7,1587.5,6.60616]
[1745142141015,0.50926637,1587.6,1587.5,6.60616]
[1745142141325,3.15987014,1587.7,1587.5,6.60616]
[1745142141841,0.50926637,1587.6,1587.5,6.60616]
[1745142142027,3.15987014,1587.7,1587.5,6.60616]
[1745142142340,0.50926637,1587.6,1587.5,6.60616]
[1745142142741,3.15987014,1587.7,1587.5,6.60616]
[1745142143439,3.15987014,1587.7,1587.6,0.660616]
[1745142143829,3.15987014,1587.7,1587.6,54.603616]
[1745142146830,3.66918681,1587.7,1587.6,54.603616]
[1745142148451,3.66918681,1587.7,1587.6,53.943]
[1745142148617,3.66918681,1587.7,1587.6,59.18]
[1745142149328,3.15987014,1587.7,1587.6,59.18]
[1745142149639,4.44997723,1587.7,1587.6,59.18]
[1745142154036,3.66937723,1587.7,1587.6,59.18]
[1745142159664,4.49087723,1587.7,1587.6,59.18]
[1745142160765,7.49087723,1587.7,1587.6,59.18]
[1745142170879,7.49087723,1587.7,1587.6,53.943]
[1745142171186,7.49087723,1587.7,1587.6,59.179]
[1745142185306,6.66937723,1587.7,1587.6,59.179]
[1745142188113,3.0,1587.5,1587.3,0.7661]
[1745142188277,3.0,1587.5,1587.4,59.184]
[1745142188476,3.8313,1587.5,1587.4,59.184]
[1745142189294,10.68051259,1587.5,1587.4,59.184]
[1745142190213,10.13051259,1587.5,1587.4,59.184]
[1745142190411,12.08944843,1587.5,1587.4,59.184]
[1745142190820,13.100566,1587.5,1587.4,59.184]
[1745142191887,13.60616288,1587.5,1587.4,59.184]
[1745142195104,6.15987014,1587.2,1587.1,0.1]
[1745142195482,6.66020471,1587.2,1587.1,59.293]
[1745142198686,8.03828864,1587.2,1587.1,59.293]
[1745142200537,6.66020471,1587.2,1587.1,59.293]
[1745142201992,7.47980471,1587.2,1587.1,59.293]
[1745142203103,13.78020793,1587.2,1587.1,59.293]
[1745142205733,9.36131314,1587.0,1586.9,53.963]
[1745142205903,12.36131314,1587.0,1586.9,59.2]
[1745142206231,15.86523184,1587.0,1586.9,59.2]
[1745142207937,9.56378884,1587.0,1586.9,59.2]
[1745142208234,8.79978884,1587.0,1586.9,59.2]
[1745142208532,6.55715982,1587.0,1586.9,59.2]
[1745142209330,12.85835704,1587.0,1586.9,59.2]
[1745142209634,13.63885704,1587.0,1586.9,59.2]
[1745142209941,14.11212158,1587.0,1586.9,59.2]
[1745142215643,6.05987014,1586.9,1586.8,53.974]
[1745142215848,7.7710823,1586.9,1586.8,59.21]
[1745142216149,8.25783561,1586.9,1586.8,59.21]
[1745142217424,14.55942991,1586.9,1586.8,59.21]
[1745142217848,8.25783561,1586.9,1586.8,59.21]
[1745142219048,8.25783561,1586.9,1586.8,53.974]
[1745142219292,8.25783561,1586.9,1586.8,59.21]
[1745142219619,6.54662345,1586.9,1586.8,59.963]
[1745142220514,6.54662345,1586.9,1586.8,59.21]
[1745142227379,3.0,1586.7,1586.5,0.7663]
[1745142227586,3.05987014,1586.6,1586.5,0.7663]
[1745142227783,3.54731627,1586.6,1586.5,59.9823]
[1745142228142,3.05987014,1586.6,1586.5,59.9823]
[1745142228379,3.54731627,1586.6,1586.5,59.9823]
[1745142233883,3.54731627,1586.6,1586.5,59.216]
[1745142234308,3.54731627,1586.6,1586.4,0.6086]
[1745142235387,3.54731627,1586.6,1586.5,59.217]
[1745142237256,7.2020479,1586.6,1586.5,59.217]
[1745142239404,6.54731627,1586.6,1586.5,59.217]
[1745142241007,7.02067359,1586.6,1586.5,59.217]
[1745142241698,7.02067359,1586.6,1586.5,59.9983]
[1745142242207,6.54731627,1586.6,1586.5,59.9983]
[1745142255905,3.54731627,1586.6,1586.5,59.9983]
[1745142256111,3.54731627,1586.6,1586.5,65.99813]
[1745142256446,3.05987014,1586.6,1586.5,65.99813]
[1745142256949,3.50411291,1586.6,1586.5,65.99813]
[1745142264535,3.05987014,1586.6,1586.5,65.99813]
[1745142268141,3.49830359,1586.6,1586.5,65.99813]
[1745142268735,6.49830359,1586.6,1586.5,65.99813]
[1745142268937,6.49830359,1586.6,1586.5,59.9983]
[1745142269312,6.05987014,1586.6,1586.5,59.9983]
[1745142270254,6.49830359,1586.6,1586.5,59.9983]
[1745142271125,6.05987014,1586.6,1586.5,59.9983]
[1745142271325,3.05987014,1586.6,1586.5,59.9983]
[1745142271538,3.05987014,1586.6,1586.5,66.74933506]
[1745142271711,3.05987014,1586.6,1586.5,65.99813]
[1745142273746,3.05987014,1586.6,1586.5,67.40274668]
[1745142274415,3.05987014,1586.6,1586.5,66.74933506]
[1745142274944,3.05987014,1586.6,1586.5,65.99813]
[1745142276764,3.05987014,1587.0,1586.5,66.54813]
[1745142276945,3.05987014,1587.0,1586.7,0.7787]
[1745142277139,0.44317299,1586.9,1586.8,0.06300881]
[1745142277358,3.05987014,1587.0,1586.8,0.06300881]
[1745142277548,3.05987014,1587.0,1586.9,5.233]
[1745142281738,3.05987014,1587.0,1586.9,59.201]
[1745142281957,3.05987014,1587.0,1586.9,65.1211]
[1745142283575,3.50309347,1587.0,1586.9,65.8899]
[1745142284239,3.50309347,1587.0,1586.9,65.1211]
[1745142288368,3.50309347,1587.0,1586.9,59.201]
[1745142301962,6.50309347,1587.0,1586.9,53.968]
[1745142302160,7.32279347,1587.0,1586.9,59.201]
[1745142302395,6.87957014,1587.0,1586.9,59.201]
[1745142302701,6.50615185,1587.0,1586.9,59.201]
[1745142303400,3.50615185,1587.0,1586.9,59.201]
[1745142303572,3.50615185,1587.0,1586.9,65.8738]
[1745142304602,3.50615185,1587.0,1586.9,59.201]
[1745142305465,4.32585185,1587.0,1586.9,59.201]
[1745142305800,3.87957014,1587.0,1586.9,59.201]
[1745142306270,4.32444295,1587.0,1586.9,59.201]
[1745142308797,4.32444295,1587.0,1586.9,59.199]
[1745142308974,5.05688725,1587.0,1586.9,59.199]
[1745142309175,8.53288526,1587.0,1586.9,59.199]
[1745142310297,8.05688725,1587.0,1586.9,59.199]
[1745142311482,8.52163557,1587.0,1586.9,59.199]
[1745142312397,8.05688725,1587.0,1586.9,59.199]
[1745142315323,7.32444295,1587.0,1586.9,59.199]